Workbook

Sheet Instructions
A1: 13-Week Cash Flow Forecast | Instructions
A3: Cadence & Compass | Disciplined execution. Confident direction.
A5: Purpose & Overview
A6: This template is a direct-method 13-week cash flow forecast designed to help management teams understand near-term cash requirements and available liquidity. It converts expected customer collections, vendor payments, payroll, other cash flows and financing availability into a weekly view of ending cash and liquidity. Update the supporting schedules first; the 13 Week Cash Flow tab is intended primarily as an output and review page.
A10: How to Use the Template
A11: 1 | B11: Set the forecast period | D11: On Inputs, enter the Forecast Start date, beginning cash, minimum cash threshold and debt/liquidity assumptions.
A12: 2 | B12: Update A/R | D12: List open receivables, expected collection percentages and the date cash is realistically expected to be received.
A13: 3 | B13: Update A/P | D13: List open payables, expected payment percentages and the date each payment is expected to clear.
A14: 4 | B14: Update headcount & payroll | D14: Enter employee compensation, burden, monthly benefits, start/termination dates and pay frequency. Maintain the Payroll Calendar for payroll timing.
A15: 5 | B15: Add other cash flows | D15: Enter material cash items not captured in A/R, A/P or payroll, including taxes, capex, settlements, owner/investor funding or other one-time items.
A16: 6 | B16: Review liquidity | D16: Confirm revolver commitment, beginning draws and availability on Debt & Liquidity.
A17: 7 | B17: Review the forecast | D17: Use 13 Week Cash Flow to evaluate weekly cash movement, minimum cash headroom, revolver usage and total available liquidity.
A19: Tab Guide
A20: Tab | C20: What it does
A21: 13 Week Cash Flow | C21: Weekly summary of cash receipts, disbursements, financing activity, ending cash and available liquidity.
A22: Inputs | C22: Core forecast dates, minimum cash, beginning cash, revolver assumptions, payroll burden and default benefits.
A23: AR | C23: Customer-level receivables and expected collection timing.
A24: AP | C24: Vendor-level payables and expected payment timing.
A25: Headcount | C25: Employee compensation, payroll burden, benefits, employment dates and fully burdened labor per payroll event.
A26: Payroll Calendar | C26: Pay-period start/end dates and pay dates used to place labor cash outflows into the correct forecast week.
A27: Other Cash Flows | C27: Material inflows/outflows not captured elsewhere, with probability-adjusted amounts.
A28: Debt & Liquidity | C28: Revolver commitment, drawn balance, remaining availability and liquidity assumptions.
A30: Model Conventions & Important Notes
A31: Blue font | C31: Hardcoded inputs or assumptions that users are expected to update.
A32: Green font | C32: Links to another worksheet within the workbook.
A33: Black font | C33: Formulas and calculations on the same worksheet.
A34: Expected dates matter | C34: A 13-week cash forecast is a timing model. Use the date cash is realistically expected to enter or leave the bank—not simply invoice due dates.
A35: Probability % | C35: Use thoughtfully for uncertain non-operating or one-time cash flows. Avoid using probability weighting as a substitute for a clear base/downside judgment.
A36: Payroll simplification | C36: Fully burdened labor includes base compensation, payroll burden and allocated monthly benefits. This is intentionally simplified for a practical free template.
A37: Weekly maintenance | C37: Refresh expected cash dates and assumptions each week. The model is most useful when it reflects current operating judgment rather than stale accounting dates.
A40: When the forecast raises harder questions
A41: A 13-week forecast can show where liquidity pressure is developing. Deciding what to do about it often requires a deeper look at timing, working capital, operating decisions, financing alternatives and scenario planning.
A44: Check us out for more resources, templates, and ideas: www.cadenceandcompass.com

Sheet 13 Week Cash Flow
A1: 13-Week Cash Flow Forecast
A4: Week Ending | C4: =Inputs!B4+6 -> 2026-08-07 | D4: =C4+7 -> 2026-08-14 | E4: 2026-08-21 | F4: 2026-08-28 | G4: 2026-09-04 | H4: 2026-09-11 | I4: 2026-09-18 | J4: 2026-09-25 | K4: 2026-10-02 | L4: 2026-10-09 | M4: 2026-10-16 | N4: 2026-10-23 | O4: 2026-10-30
A6: Beginning Cash | C6: =Inputs!B6 -> 375000 | D6: =C26 -> 360400 | E6: 360400 | F6: 422300 | G6: 422300 | H6: 515200 | I6: 459450 | J6: 415725 | K6: 377508.055 | L6: 283515.7473 | M6: 283515.7473 | N6: 276023.4396 | O6: 276023.4396
A8: CASH RECEIPTS
A9: A/R Collections | C9: =SUMIFS(AR!$G$4:$G$200,AR!$H$4:$H$200,">"&C$4-7,AR!$H$4:$H$200,"<="&C$4) -> 0 | D9: =SUMIFS(AR!$G$4:$G$200,AR!$H$4:$H$200,">"&D$4-7,AR!$H$4:$H$200,"<="&D$4) -> 0 | E9: =SUMIFS(AR!$G$4:$G$200,AR!$H$4:$H$200,">"&E$4-7,AR!$H$4:$H$200,"<="&E$4) -> 76500 | F9: =SUMIFS(AR!$G$4:$G$200,AR!$H$4:$H$200,">"&F$4-7,AR!$H$4:$H$200,"<="&F$4) -> 0 | G9: =SUMIFS(AR!$G$4:$G$200,AR!$H$4:$H$200,">"&G$4-7,AR!$H$4:$H$200,"<="&G$4) -> 130500 | H9: =SUMIFS(AR!$G$4:$G$200,AR!$H$4:$H$200,">"&H$4-7,AR!$H$4:$H$200,"<="&H$4) -> 94250 | I9: =SUMIFS(AR!$G$4:$G$200,AR!$H$4:$H$200,">"&I$4-7,AR!$H$4:$H$200,"<="&I$4) -> 25875 | J9: =SUMIFS(AR!$G$4:$G$200,AR!$H$4:$H$200,">"&J$4-7,AR!$H$4:$H$200,"<="&J$4) -> 0 | K9: =SUMIFS(AR!$G$4:$G$200,AR!$H$4:$H$200,">"&K$4-7,AR!$H$4:$H$200,"<="&K$4) -> 0 | L9: =SUMIFS(AR!$G$4:$G$200,AR!$H$4:$H$200,">"&L$4-7,AR!$H$4:$H$200,"<="&L$4) -> 0 | M9: =SUMIFS(AR!$G$4:$G$200,AR!$H$4:$H$200,">"&M$4-7,AR!$H$4:$H$200,"<="&M$4) -> 0 | N9: =SUMIFS(AR!$G$4:$G$200,AR!$H$4:$H$200,">"&N$4-7,AR!$H$4:$H$200,"<="&N$4) -> 0 | O9: =SUMIFS(AR!$G$4:$G$200,AR!$H$4:$H$200,">"&O$4-7,AR!$H$4:$H$200,"<="&O$4) -> 0
A10: Other Operating Receipts | C10: =SUMIFS('Other Cash Flows'!$G$4:$G$200,'Other Cash Flows'!$E$4:$E$200,">"&C$4-7,'Other Cash Flows'!$E$4:$E$200,"<="&C$4,'Other Cash Flows'!$G$4:$G$200,">0") -> 0 | D10: =SUMIFS('Other Cash Flows'!$G$4:$G$200,'Other Cash Flows'!$E$4:$E$200,">"&D$4-7,'Other Cash Flows'!$E$4:$E$200,"<="&D$4,'Other Cash Flows'!$G$4:$G$200,">0") -> 0 | E10: =SUMIFS('Other Cash Flows'!$G$4:$G$200,'Other Cash Flows'!$E$4:$E$200,">"&E$4-7,'Other Cash Flows'!$E$4:$E$200,"<="&E$4,'Other Cash Flows'!$G$4:$G$200,">0") -> 0 | F10: =SUMIFS('Other Cash Flows'!$G$4:$G$200,'Other Cash Flows'!$E$4:$E$200,">"&F$4-7,'Other Cash Flows'!$E$4:$E$200,"<="&F$4,'Other Cash Flows'!$G$4:$G$200,">0") -> 0 | G10: =SUMIFS('Other Cash Flows'!$G$4:$G$200,'Other Cash Flows'!$E$4:$E$200,">"&G$4-7,'Other Cash Flows'!$E$4:$E$200,"<="&G$4,'Other Cash Flows'!$G$4:$G$200,">0") -> 0 | H10: =SUMIFS('Other Cash Flows'!$G$4:$G$200,'Other Cash Flows'!$E$4:$E$200,">"&H$4-7,'Other Cash Flows'!$E$4:$E$200,"<="&H$4,'Other Cash Flows'!$G$4:$G$200,">0") -> 0 | I10: =SUMIFS('Other Cash Flows'!$G$4:$G$200,'Other Cash Flows'!$E$4:$E$200,">"&I$4-7,'Other Cash Flows'!$E$4:$E$200,"<="&I$4,'Other Cash Flows'!$G$4:$G$200,">0") -> 0 | J10: =SUMIFS('Other Cash Flows'!$G$4:$G$200,'Other Cash Flows'!$E$4:$E$200,">"&J$4-7,'Other Cash Flows'!$E$4:$E$200,"<="&J$4,'Other Cash Flows'!$G$4:$G$200,">0") -> 0 | K10: =SUMIFS('Other Cash Flows'!$G$4:$G$200,'Other Cash Flows'!$E$4:$E$200,">"&K$4-7,'Other Cash Flows'!$E$4:$E$200,"<="&K$4,'Other Cash Flows'!$G$4:$G$200,">0") -> 0 | L10: =SUMIFS('Other Cash Flows'!$G$4:$G$200,'Other Cash Flows'!$E$4:$E$200,">"&L$4-7,'Other Cash Flows'!$E$4:$E$200,"<="&L$4,'Other Cash Flows'!$G$4:$G$200,">0") -> 0 | M10: =SUMIFS('Other Cash Flows'!$G$4:$G$200,'Other Cash Flows'!$E$4:$E$200,">"&M$4-7,'Other Cash Flows'!$E$4:$E$200,"<="&M$4,'Other Cash Flows'!$G$4:$G$200,">0") -> 11500 | N10: =SUMIFS('Other Cash Flows'!$G$4:$G$200,'Other Cash Flows'!$E$4:$E$200,">"&N$4-7,'Other Cash Flows'!$E$4:$E$200,"<="&N$4,'Other Cash Flows'!$G$4:$G$200,">0") -> 0 | O10: =SUMIFS('Other Cash Flows'!$G$4:$G$200,'Other Cash Flows'!$E$4:$E$200,">"&O$4-7,'Other Cash Flows'!$E$4:$E$200,"<="&O$4,'Other Cash Flows'!$G$4:$G$200,">0") -> 0
A11: Total Cash Receipts | C11: =SUM(C9:C10) -> 0 | D11: 0 | E11: 76500 | F11: 0 | G11: 130500 | H11: 94250 | I11: 25875 | J11: 0 | K11: 0 | L11: 0 | M11: 11500 | N11: 0 | O11: 0
A13: CASH DISBURSEMENTS
A14: Payroll, Taxes & Benefits | C14: =IFERROR(__xludf.DUMMYFUNCTION("-IF( COUNTIFS( 'Payroll Calendar'!$C:$C,"">""&C$4, 'Payroll Calendar'!$C:$C,""<=""&D$4 )=0, 0, SUM( FILTER( Headcount!$H$4:$H999, Headcount!$I$4:$I999<=MIN( FILTER( 'Payroll Calendar'!$C:$C, 'Pay"&"roll Calendar'!$C:$C>C$4, 'Payroll Calendar'!$C:$C<=D$4 ) ), (Headcount!$J$4:$J999="""")+ ( Headcount!$J$4:$J999>=MIN( FILTER( 'Payroll Calendar'!$C:$C, 'Payroll Calendar'!$C:$C"&">C$4, 'Payroll Calendar'!$C:$C<=D$4 ) ) ) ) ) )"),-14600.0) -> -14600 | D14: =IFERROR(__xludf.DUMMYFUNCTION("-IF( COUNTIFS( 'Payroll Calendar'!$C:$C,"">""&D$4, 'Payroll Calendar'!$C:$C,""<=""&E$4 )=0, 0, SUM( FILTER( Headcount!$H$4:$H999, Headcount!$I$4:$I999<=MIN( FILTER( 'Payroll Calendar'!$C:$C, 'Pay"&"roll Calendar'!$C:$C>D$4, 'Payroll Calendar'!$C:$C<=E$4 ) ), (Headcount!$J$4:$J999="""")+ ( Headcount!$J$4:$J999>=MIN( FILTER( 'Payroll Calendar'!$C:$C, 'Payroll Calendar'!$C:$C"&">D$4, 'Payroll Calendar'!$C:$C<=E$4 ) ) ) ) ) )"),0.0) -> 0 | E14: =IFERROR(__xludf.DUMMYFUNCTION("-IF( COUNTIFS( 'Payroll Calendar'!$C:$C,"">""&E$4, 'Payroll Calendar'!$C:$C,""<=""&F$4 )=0, 0, SUM( FILTER( Headcount!$H$4:$H999, Headcount!$I$4:$I999<=MIN( FILTER( 'Payroll Calendar'!$C:$C, 'Pay"&"roll Calendar'!$C:$C>E$4, 'Payroll Calendar'!$C:$C<=F$4 ) ), (Headcount!$J$4:$J999="""")+ ( Headcount!$J$4:$J999>=MIN( FILTER( 'Payroll Calendar'!$C:$C, 'Payroll Calendar'!$C:$C"&">E$4, 'Payroll Calendar'!$C:$C<=F$4 ) ) ) ) ) )"),-14600.0) -> -14600 | F14: =IFERROR(__xludf.DUMMYFUNCTION("-IF( COUNTIFS( 'Payroll Calendar'!$C:$C,"">""&F$4, 'Payroll Calendar'!$C:$C,""<=""&G$4 )=0, 0, SUM( FILTER( Headcount!$H$4:$H999, Headcount!$I$4:$I999<=MIN( FILTER( 'Payroll Calendar'!$C:$C, 'Pay"&"roll Calendar'!$C:$C>F$4, 'Payroll Calendar'!$C:$C<=G$4 ) ), (Headcount!$J$4:$J999="""")+ ( Headcount!$J$4:$J999>=MIN( FILTER( 'Payroll Calendar'!$C:$C, 'Payroll Calendar'!$C:$C"&">F$4, 'Payroll Calendar'!$C:$C<=G$4 ) ) ) ) ) )"),0.0) -> 0 | G14: =IFERROR(__xludf.DUMMYFUNCTION("-IF( COUNTIFS( 'Payroll Calendar'!$C:$C,"">""&G$4, 'Payroll Calendar'!$C:$C,""<=""&H$4 )=0, 0, SUM( FILTER( Headcount!$H$4:$H999, Headcount!$I$4:$I999<=MIN( FILTER( 'Payroll Calendar'!$C:$C, 'Pay"&"roll Calendar'!$C:$C>G$4, 'Payroll Calendar'!$C:$C<=H$4 ) ), (Headcount!$J$4:$J999="""")+ ( Headcount!$J$4:$J999>=MIN( FILTER( 'Payroll Calendar'!$C:$C, 'Payroll Calendar'!$C:$C"&">G$4, 'Payroll Calendar'!$C:$C<=H$4 ) ) ) ) ) )"),-14600.0) -> -14600 | H14: =IFERROR(__xludf.DUMMYFUNCTION("-IF( COUNTIFS( 'Payroll Calendar'!$C:$C,"">""&H$4, 'Payroll Calendar'!$C:$C,""<=""&I$4 )=0, 0, SUM( FILTER( Headcount!$H$4:$H999, Headcount!$I$4:$I999<=MIN( FILTER( 'Payroll Calendar'!$C:$C, 'Pay"&"roll Calendar'!$C:$C>H$4, 'Payroll Calendar'!$C:$C<=I$4 ) ), (Headcount!$J$4:$J999="""")+ ( Headcount!$J$4:$J999>=MIN( FILTER( 'Payroll Calendar'!$C:$C, 'Payroll Calendar'!$C:$C"&">H$4, 'Payroll Calendar'!$C:$C<=I$4 ) ) ) ) ) )"),0.0) -> 0 | I14: =IFERROR(__xludf.DUMMYFUNCTION("-IF( COUNTIFS( 'Payroll Calendar'!$C:$C,"">""&I$4, 'Payroll Calendar'!$C:$C,""<=""&J$4 )=0, 0, SUM( FILTER( Headcount!$H$4:$H999, Headcount!$I$4:$I999<=MIN( FILTER( 'Payroll Calendar'!$C:$C, 'Pay"&"roll Calendar'!$C:$C>I$4, 'Payroll Calendar'!$C:$C<=J$4 ) ), (Headcount!$J$4:$J999="""")+ ( Headcount!$J$4:$J999>=MIN( FILTER( 'Payroll Calendar'!$C:$C, 'Payroll Calendar'!$C:$C"&">I$4, 'Payroll Calendar'!$C:$C<=J$4 ) ) ) ) ) )"),-14600.0) -> -14600 | J14: =IFERROR(__xludf.DUMMYFUNCTION("-IF( COUNTIFS( 'Payroll Calendar'!$C:$C,"">""&J$4, 'Payroll Calendar'!$C:$C,""<=""&K$4 )=0, 0, SUM( FILTER( Headcount!$H$4:$H999, Headcount!$I$4:$I999<=MIN( FILTER( 'Payroll Calendar'!$C:$C, 'Pay"&"roll Calendar'!$C:$C>J$4, 'Payroll Calendar'!$C:$C<=K$4 ) ), (Headcount!$J$4:$J999="""")+ ( Headcount!$J$4:$J999>=MIN( FILTER( 'Payroll Calendar'!$C:$C, 'Payroll Calendar'!$C:$C"&">J$4, 'Payroll Calendar'!$C:$C<=K$4 ) ) ) ) ) )"),0.0) -> 0 | K14: =IFERROR(__xludf.DUMMYFUNCTION("-IF( COUNTIFS( 'Payroll Calendar'!$C:$C,"">""&K$4, 'Payroll Calendar'!$C:$C,""<=""&L$4 )=0, 0, SUM( FILTER( Headcount!$H$4:$H999, Headcount!$I$4:$I999<=MIN( FILTER( 'Payroll Calendar'!$C:$C, 'Pay"&"roll Calendar'!$C:$C>K$4, 'Payroll Calendar'!$C:$C<=L$4 ) ), (Headcount!$J$4:$J999="""")+ ( Headcount!$J$4:$J999>=MIN( FILTER( 'Payroll Calendar'!$C:$C, 'Payroll Calendar'!$C:$C"&">K$4, 'Payroll Calendar'!$C:$C<=L$4 ) ) ) ) ) )"),-18992.307692307695) -> -18992.30769 | L14: =IFERROR(__xludf.DUMMYFUNCTION("-IF( COUNTIFS( 'Payroll Calendar'!$C:$C,"">""&L$4, 'Payroll Calendar'!$C:$C,""<=""&M$4 )=0, 0, SUM( FILTER( Headcount!$H$4:$H999, Headcount!$I$4:$I999<=MIN( FILTER( 'Payroll Calendar'!$C:$C, 'Pay"&"roll Calendar'!$C:$C>L$4, 'Payroll Calendar'!$C:$C<=M$4 ) ), (Headcount!$J$4:$J999="""")+ ( Headcount!$J$4:$J999>=MIN( FILTER( 'Payroll Calendar'!$C:$C, 'Payroll Calendar'!$C:$C"&">L$4, 'Payroll Calendar'!$C:$C<=M$4 ) ) ) ) ) )"),0.0) -> 0 | M14: =IFERROR(__xludf.DUMMYFUNCTION("-IF( COUNTIFS( 'Payroll Calendar'!$C:$C,"">""&M$4, 'Payroll Calendar'!$C:$C,""<=""&N$4 )=0, 0, SUM( FILTER( Headcount!$H$4:$H999, Headcount!$I$4:$I999<=MIN( FILTER( 'Payroll Calendar'!$C:$C, 'Pay"&"roll Calendar'!$C:$C>M$4, 'Payroll Calendar'!$C:$C<=N$4 ) ), (Headcount!$J$4:$J999="""")+ ( Headcount!$J$4:$J999>=MIN( FILTER( 'Payroll Calendar'!$C:$C, 'Payroll Calendar'!$C:$C"&">M$4, 'Payroll Calendar'!$C:$C<=N$4 ) ) ) ) ) )"),-18992.307692307695) -> -18992.30769 | N14: =IFERROR(__xludf.DUMMYFUNCTION("-IF( COUNTIFS( 'Payroll Calendar'!$C:$C,"">""&N$4, 'Payroll Calendar'!$C:$C,""<=""&O$4 )=0, 0, SUM( FILTER( Headcount!$H$4:$H999, Headcount!$I$4:$I999<=MIN( FILTER( 'Payroll Calendar'!$C:$C, 'Pay"&"roll Calendar'!$C:$C>N$4, 'Payroll Calendar'!$C:$C<=O$4 ) ), (Headcount!$J$4:$J999="""")+ ( Headcount!$J$4:$J999>=MIN( FILTER( 'Payroll Calendar'!$C:$C, 'Payroll Calendar'!$C:$C"&">N$4, 'Payroll Calendar'!$C:$C<=O$4 ) ) ) ) ) )"),0.0) -> 0 | O14: =IFERROR(__xludf.DUMMYFUNCTION("-IF( COUNTIFS( 'Payroll Calendar'!$C:$C,"">""&O$4, 'Payroll Calendar'!$C:$C,""<=""&P$4 )=0, 0, SUM( FILTER( Headcount!$H$4:$H999, Headcount!$I$4:$I999<=MIN( FILTER( 'Payroll Calendar'!$C:$C, 'Pay"&"roll Calendar'!$C:$C>O$4, 'Payroll Calendar'!$C:$C<=P$4 ) ), (Headcount!$J$4:$J999="""")+ ( Headcount!$J$4:$J999>=MIN( FILTER( 'Payroll Calendar'!$C:$C, 'Payroll Calendar'!$C:$C"&">O$4, 'Payroll Calendar'!$C:$C<=P$4 ) ) ) ) ) )"),0.0) -> 0
A15: A/P / Vendor Payments | C15: =-SUMIFS(AP!$G$4:$G$200,AP!$H$4:$H$200,">"&C$4-7,AP!$H$4:$H$200,"<="&C$4) -> 0 | D15: =-SUMIFS(AP!$G$4:$G$200,AP!$H$4:$H$200,">"&D$4-7,AP!$H$4:$H$200,"<="&D$4) -> 0 | E15: =-SUMIFS(AP!$G$4:$G$200,AP!$H$4:$H$200,">"&E$4-7,AP!$H$4:$H$200,"<="&E$4) -> 0 | F15: =-SUMIFS(AP!$G$4:$G$200,AP!$H$4:$H$200,">"&F$4-7,AP!$H$4:$H$200,"<="&F$4) -> 0 | G15: =-SUMIFS(AP!$G$4:$G$200,AP!$H$4:$H$200,">"&G$4-7,AP!$H$4:$H$200,"<="&G$4) -> -23000 | H15: =-SUMIFS(AP!$G$4:$G$200,AP!$H$4:$H$200,">"&H$4-7,AP!$H$4:$H$200,"<="&H$4) -> -150000 | I15: =-SUMIFS(AP!$G$4:$G$200,AP!$H$4:$H$200,">"&I$4-7,AP!$H$4:$H$200,"<="&I$4) -> 0 | J15: =-SUMIFS(AP!$G$4:$G$200,AP!$H$4:$H$200,">"&J$4-7,AP!$H$4:$H$200,"<="&J$4) -> -38216.945 | K15: =-SUMIFS(AP!$G$4:$G$200,AP!$H$4:$H$200,">"&K$4-7,AP!$H$4:$H$200,"<="&K$4) -> 0 | L15: =-SUMIFS(AP!$G$4:$G$200,AP!$H$4:$H$200,">"&L$4-7,AP!$H$4:$H$200,"<="&L$4) -> 0 | M15: =-SUMIFS(AP!$G$4:$G$200,AP!$H$4:$H$200,">"&M$4-7,AP!$H$4:$H$200,"<="&M$4) -> 0 | N15: =-SUMIFS(AP!$G$4:$G$200,AP!$H$4:$H$200,">"&N$4-7,AP!$H$4:$H$200,"<="&N$4) -> 0 | O15: =-SUMIFS(AP!$G$4:$G$200,AP!$H$4:$H$200,">"&O$4-7,AP!$H$4:$H$200,"<="&O$4) -> 0
A16: Other Operating / Non-Operating | C16: =SUMIFS('Other Cash Flows'!$G$4:$G$200,'Other Cash Flows'!$E$4:$E$200,">"&C$4-7,'Other Cash Flows'!$E$4:$E$200,"<="&C$4,'Other Cash Flows'!$G$4:$G$200,"<0") -> 0 | D16: =SUMIFS('Other Cash Flows'!$G$4:$G$200,'Other Cash Flows'!$E$4:$E$200,">"&D$4-7,'Other Cash Flows'!$E$4:$E$200,"<="&D$4,'Other Cash Flows'!$G$4:$G$200,"<0") -> 0 | E16: =SUMIFS('Other Cash Flows'!$G$4:$G$200,'Other Cash Flows'!$E$4:$E$200,">"&E$4-7,'Other Cash Flows'!$E$4:$E$200,"<="&E$4,'Other Cash Flows'!$G$4:$G$200,"<0") -> 0 | F16: =SUMIFS('Other Cash Flows'!$G$4:$G$200,'Other Cash Flows'!$E$4:$E$200,">"&F$4-7,'Other Cash Flows'!$E$4:$E$200,"<="&F$4,'Other Cash Flows'!$G$4:$G$200,"<0") -> 0 | G16: =SUMIFS('Other Cash Flows'!$G$4:$G$200,'Other Cash Flows'!$E$4:$E$200,">"&G$4-7,'Other Cash Flows'!$E$4:$E$200,"<="&G$4,'Other Cash Flows'!$G$4:$G$200,"<0") -> 0 | H16: =SUMIFS('Other Cash Flows'!$G$4:$G$200,'Other Cash Flows'!$E$4:$E$200,">"&H$4-7,'Other Cash Flows'!$E$4:$E$200,"<="&H$4,'Other Cash Flows'!$G$4:$G$200,"<0") -> 0 | I16: =SUMIFS('Other Cash Flows'!$G$4:$G$200,'Other Cash Flows'!$E$4:$E$200,">"&I$4-7,'Other Cash Flows'!$E$4:$E$200,"<="&I$4,'Other Cash Flows'!$G$4:$G$200,"<0") -> -55000 | J16: =SUMIFS('Other Cash Flows'!$G$4:$G$200,'Other Cash Flows'!$E$4:$E$200,">"&J$4-7,'Other Cash Flows'!$E$4:$E$200,"<="&J$4,'Other Cash Flows'!$G$4:$G$200,"<0") -> 0 | K16: =SUMIFS('Other Cash Flows'!$G$4:$G$200,'Other Cash Flows'!$E$4:$E$200,">"&K$4-7,'Other Cash Flows'!$E$4:$E$200,"<="&K$4,'Other Cash Flows'!$G$4:$G$200,"<0") -> -75000 | L16: =SUMIFS('Other Cash Flows'!$G$4:$G$200,'Other Cash Flows'!$E$4:$E$200,">"&L$4-7,'Other Cash Flows'!$E$4:$E$200,"<="&L$4,'Other Cash Flows'!$G$4:$G$200,"<0") -> 0 | M16: =SUMIFS('Other Cash Flows'!$G$4:$G$200,'Other Cash Flows'!$E$4:$E$200,">"&M$4-7,'Other Cash Flows'!$E$4:$E$200,"<="&M$4,'Other Cash Flows'!$G$4:$G$200,"<0") -> 0 | N16: =SUMIFS('Other Cash Flows'!$G$4:$G$200,'Other Cash Flows'!$E$4:$E$200,">"&N$4-7,'Other Cash Flows'!$E$4:$E$200,"<="&N$4,'Other Cash Flows'!$G$4:$G$200,"<0") -> 0 | O16: =SUMIFS('Other Cash Flows'!$G$4:$G$200,'Other Cash Flows'!$E$4:$E$200,">"&O$4-7,'Other Cash Flows'!$E$4:$E$200,"<="&O$4,'Other Cash Flows'!$G$4:$G$200,"<0") -> 0
A17: Total Cash Disbursements | C17: =SUM(C14:C16) -> -14600 | D17: 0 | E17: -14600 | F17: 0 | G17: -37600 | H17: -150000 | I17: -69600 | J17: -38216.945 | K17: -93992.30769 | L17: 0 | M17: -18992.30769 | N17: 0 | O17: 0
A19: Net Cash Flow Before Financing | C19: =C11+C17 -> -14600 | D19: 0 | E19: 61900 | F19: 0 | G19: 92900 | H19: -55750 | I19: -43725 | J19: -38216.945 | K19: -93992.30769 | L19: 0 | M19: -7492.307692 | N19: 0 | O19: 0
A20: Ending Cash Before Financing | C20: =C6+C19 -> 360400 | D20: 360400 | E20: 422300 | F20: 422300 | G20: 515200 | H20: 459450 | I20: 415725 | J20: 377508.055 | K20: 283515.7473 | L20: 283515.7473 | M20: 276023.4396 | N20: 276023.4396 | O20: 276023.4396
A22: LIQUIDITY / FINANCING
A23: Revolver Draw / (Repayment) | C23: =IF(C20<Inputs!$B$5,MIN(Inputs!$B$8-Inputs!$B$7,Inputs!$B$5-C20),-MIN(MAX(C20-Inputs!$B$5,0),Inputs!$B$7)) -> 0 | D23: =IF(D20<Inputs!$B$5,MIN(Inputs!$B$8-C24,Inputs!$B$5-D20),-MIN(MAX(D20-Inputs!$B$5,0),C24)) -> 0 | E23: =IF(E20<Inputs!$B$5,MIN(Inputs!$B$8-D24,Inputs!$B$5-E20),-MIN(MAX(E20-Inputs!$B$5,0),D24)) -> 0 | F23: =IF(F20<Inputs!$B$5,MIN(Inputs!$B$8-E24,Inputs!$B$5-F20),-MIN(MAX(F20-Inputs!$B$5,0),E24)) -> 0 | G23: =IF(G20<Inputs!$B$5,MIN(Inputs!$B$8-F24,Inputs!$B$5-G20),-MIN(MAX(G20-Inputs!$B$5,0),F24)) -> 0 | H23: =IF(H20<Inputs!$B$5,MIN(Inputs!$B$8-G24,Inputs!$B$5-H20),-MIN(MAX(H20-Inputs!$B$5,0),G24)) -> 0 | I23: =IF(I20<Inputs!$B$5,MIN(Inputs!$B$8-H24,Inputs!$B$5-I20),-MIN(MAX(I20-Inputs!$B$5,0),H24)) -> 0 | J23: =IF(J20<Inputs!$B$5,MIN(Inputs!$B$8-I24,Inputs!$B$5-J20),-MIN(MAX(J20-Inputs!$B$5,0),I24)) -> 0 | K23: =IF(K20<Inputs!$B$5,MIN(Inputs!$B$8-J24,Inputs!$B$5-K20),-MIN(MAX(K20-Inputs!$B$5,0),J24)) -> 0 | L23: =IF(L20<Inputs!$B$5,MIN(Inputs!$B$8-K24,Inputs!$B$5-L20),-MIN(MAX(L20-Inputs!$B$5,0),K24)) -> 0 | M23: =IF(M20<Inputs!$B$5,MIN(Inputs!$B$8-L24,Inputs!$B$5-M20),-MIN(MAX(M20-Inputs!$B$5,0),L24)) -> 0 | N23: =IF(N20<Inputs!$B$5,MIN(Inputs!$B$8-M24,Inputs!$B$5-N20),-MIN(MAX(N20-Inputs!$B$5,0),M24)) -> 0 | O23: =IF(O20<Inputs!$B$5,MIN(Inputs!$B$8-N24,Inputs!$B$5-O20),-MIN(MAX(O20-Inputs!$B$5,0),N24)) -> 0
A24: Ending Revolver Drawn | C24: =Inputs!$B$7+C23 -> 0 | D24: =C24+D23 -> 0 | E24: 0 | F24: 0 | G24: 0 | H24: 0 | I24: 0 | J24: 0 | K24: 0 | L24: 0 | M24: 0 | N24: 0 | O24: 0
A25: Remaining Revolver Availability | C25: =Inputs!$B$8-C24 -> 500000 | D25: =Inputs!$B$8-D24 -> 500000 | E25: =Inputs!$B$8-E24 -> 500000 | F25: =Inputs!$B$8-F24 -> 500000 | G25: =Inputs!$B$8-G24 -> 500000 | H25: =Inputs!$B$8-H24 -> 500000 | I25: =Inputs!$B$8-I24 -> 500000 | J25: =Inputs!$B$8-J24 -> 500000 | K25: =Inputs!$B$8-K24 -> 500000 | L25: =Inputs!$B$8-L24 -> 500000 | M25: =Inputs!$B$8-M24 -> 500000 | N25: =Inputs!$B$8-N24 -> 500000 | O25: =Inputs!$B$8-O24 -> 500000
A26: Ending Cash After Financing | C26: =C20+C23 -> 360400 | D26: 360400 | E26: 422300 | F26: 422300 | G26: 515200 | H26: 459450 | I26: 415725 | J26: 377508.055 | K26: 283515.7473 | L26: 283515.7473 | M26: 276023.4396 | N26: 276023.4396 | O26: 276023.4396
A28: LIQUIDITY KPIs
A29: Minimum Cash Threshold | C29: =Inputs!$B$5 -> 150000 | D29: =Inputs!$B$5 -> 150000 | E29: =Inputs!$B$5 -> 150000 | F29: =Inputs!$B$5 -> 150000 | G29: =Inputs!$B$5 -> 150000 | H29: =Inputs!$B$5 -> 150000 | I29: =Inputs!$B$5 -> 150000 | J29: =Inputs!$B$5 -> 150000 | K29: =Inputs!$B$5 -> 150000 | L29: =Inputs!$B$5 -> 150000 | M29: =Inputs!$B$5 -> 150000 | N29: =Inputs!$B$5 -> 150000 | O29: =Inputs!$B$5 -> 150000
A30: Excess / (Shortfall) vs. Minimum Cash | C30: =C26-C29 -> 210400 | D30: 210400 | E30: 272300 | F30: 272300 | G30: 365200 | H30: 309450 | I30: 265725 | J30: 227508.055 | K30: 133515.7473 | L30: 133515.7473 | M30: 126023.4396 | N30: 126023.4396 | O30: 126023.4396
A31: Total Available Liquidity | C31: =C26+C25 -> 860400 | D31: 860400 | E31: 922300 | F31: 922300 | G31: 1015200 | H31: 959450 | I31: 915725 | J31: 877508.055 | K31: 783515.7473 | L31: 783515.7473 | M31: 776023.4396 | N31: 776023.4396 | O31: 776023.4396
A34: Sponsor / Lender Readout
A35: Lowest Ending Cash | B35: =MIN(C26:O26) -> 276023.4396
A36: Lowest Total Liquidity | B36: =MIN(C31:O31) -> 776023.4396
A37: Peak Revolver Drawn | B37: =MAX(C24:O24) -> 0
A38: 13-Week Net Cash Flow | B38: =SUM(C19:O19) -> -98976.56038
A39: First Liquidity Shortfall | B39: =IFERROR(INDEX(C$4:O$4,1,MATCH(TRUE,C30:O30<0,0)),"None") -> None

Sheet Inputs
A1: 13-Week Cash Flow Forecast — Inputs & Control Panel
A3: Forecast Control | F3: Model Conventions
A4: Forecast Start (Monday) | B4: 2026-08-01 | F4: Blue font | G4: Hardcoded / scenario inputs
A5: Minimum Cash Threshold | B5: 150000 | F5: Green font | G5: Links from supporting tabs
A6: Beginning Cash Balance | B6: 375000 | F6: Black font | G6: Formulas on same tab
A7: Beginning Revolver Drawn | B7: 0 | F7: Yellow fill | G7: Input requiring review/update
A8: Revolver Commitment | B8: 500000 | F8: Forecast horizon | G8: 13 weekly periods
A9: Minimum Revolver Draw | B9: 0 | F9: Timing convention | G9: Week ending Sunday
A10: Payroll Burden % | B10: 0.12 | F10: Purpose | G10: Liquidity management / PE reporting
A11: Default Benefits / Employee / Month | B11: 650
A14: Recommended Weekly Update Process
A15: 1 | B15: Roll forecast forward one week; update Forecast Start.
A16: 2 | B16: Replace / refresh A/R and A/P detail and expected cash dates.
A17: 3 | B17: Update payroll/headcount changes and non-recurring cash flows.
A18: 4 | B18: Reconcile prior-week forecast to actual cash movement.
A19: 5 | B19: Review minimum cash, revolver availability, and liquidity risks.
A20: 6 | B20: Lock management case before distributing to sponsors / lenders.

Sheet AR
A1: Accounts Receivable — Expected Collections
A3: Customer / Payer | B3: Invoice / Ref | C3: Invoice Date | D3: Due Date | E3: Gross A/R ($) | F3: Collection % | G3: Expected Collection ($) | H3: Expected Cash Date | I3: Confidence | J3: Notes
A4: Example Customer A | B4: INV-1001 | C4: 2026-07-15 | D4: 2026-08-15 | E4: 145000 | F4: 0.9 | G4: =E4*F4 -> 130500 | H4: 2026-09-04 | I4: High
A5: Example Customer B | B5: INV-1002 | C5: 2026-08-01 | D5: 2026-08-31 | E5: 34500 | F5: 0.75 | G5: 25875 | H5: 2026-09-18 | I5: Medium
A6: Example Customer C | B6: INV-1003 | C6: 2026-07-10 | D6: 2026-09-10 | E6: 145000 | F6: 0.65 | G6: 94250 | H6: 2026-09-11 | I6: High
A7: Example Customer D | B7: INV-1004 | C7: 2026-07-26 | D7: 2026-08-25 | E7: 85000 | F7: 0.9 | G7: 76500 | H7: 2026-08-15 | I7: High
G8: 0
G9: 0
G10: 0
G11: 0
G12: 0
G13: 0
G14: 0
G15: 0
G16: 0
G17: 0
G18: 0
G19: 0
G20: 0
G21: 0
G22: 0
G23: 0
G24: 0
G25: 0
G26: 0
G27: 0
G28: 0
G29: 0
G30: 0
G31: 0
G32: 0
G33: 0
G34: 0
G35: 0
G36: 0
G37: 0
G38: 0
G39: 0
G40: 0
G41: 0
G42: 0
G43: 0
G44: 0
G45: 0
G46: 0
G47: 0
G48: 0
G49: 0
G50: 0
G51: 0
G52: 0
G53: 0
G54: 0
G55: 0
G56: 0
G57: 0
G58: 0
G59: 0
G60: 0
G61: 0
G62: 0
G63: 0
G64: 0
G65: 0
G66: 0
G67: 0
G68: 0
G69: 0
G70: 0
G71: 0
G72: 0
G73: 0
G74: 0
G75: 0
G76: 0
G77: 0
G78: 0
G79: 0
G80: 0
G81: 0
G82: 0
G83: 0
G84: 0
G85: 0
G86: 0
G87: 0
G88: 0
G89: 0
G90: 0
G91: 0
G92: 0
G93: 0
G94: 0
G95: 0
G96: 0
G97: 0
G98: 0
G99: 0
G100: 0
G101: 0
G102: 0
G103: 0
G104: 0
G105: 0
G106: 0
G107: 0
G108: 0
G109: 0
G110: 0
G111: 0
G112: 0
G113: 0
G114: 0
G115: 0
G116: 0
G117: 0
G118: 0
G119: 0
G120: 0
G121: 0
G122: 0
G123: 0
G124: 0
G125: 0
G126: 0
G127: 0
G128: 0
G129: 0
G130: 0
G131: 0
G132: 0
G133: 0
G134: 0
G135: 0
G136: 0
G137: 0
G138: 0
G139: 0
G140: 0
G141: 0
G142: 0
G143: 0
G144: 0
G145: 0
G146: 0
G147: 0
G148: 0
G149: 0
G150: 0
G151: 0
G152: 0
G153: 0
G154: 0
G155: 0
G156: 0
G157: 0
G158: 0
G159: 0
G160: 0
G161: 0
G162: 0
G163: 0
G164: 0
G165: 0
G166: 0
G167: 0
G168: 0
G169: 0
G170: 0
G171: 0
G172: 0
G173: 0
G174: 0
G175: 0
G176: 0
G177: 0
G178: 0
G179: 0
G180: 0
G181: 0
G182: 0
G183: 0
G184: 0
G185: 0
G186: 0
G187: 0
G188: 0
G189: 0
G190: 0
G191: 0
G192: 0
G193: 0
G194: 0
G195: 0
G196: 0
G197: 0
G198: 0
G199: 0
G200: 0

Sheet AP
A1: Accounts Payable — Expected Disbursements
A3: Vendor | B3: Invoice / Ref | C3: Invoice Date | D3: Due Date | E3: Open A/P ($) | F3: Payment % | G3: Expected Payment ($) | H3: Expected Cash Date | I3: Priority | J3: Notes
A4: Example Vendor A | B4: BILL-2001 | C4: 2026-08-01 | D4: 2026-08-31 | E4: 23000 | F4: 1 | G4: =E4*F4 -> 23000 | H4: 2026-09-04 | I4: Critical | J4: Replace with live A/P detail
A5: Example Vendor B | B5: BILL-2002 | C5: 2026-07-10 | D5: 2026-09-09 | E5: 150000 | F5: 1 | G5: 150000 | H5: 2026-09-11 | I5: Normal
A6: Example Vendor C | B6: BILL-2003 | C6: 2026-07-15 | D6: 2026-09-14 | E6: 76433.89 | F6: 0.5 | G6: 38216.945 | H6: 2026-09-25 | I6: Deferrable | J6: Staged payment
G7: 0
G8: 0
G9: 0
G10: 0
G11: 0
G12: 0
G13: 0
G14: 0
G15: 0
G16: 0
G17: 0
G18: 0
G19: 0
G20: 0
G21: 0
G22: 0
G23: 0
G24: 0
G25: 0
G26: 0
G27: 0
G28: 0
G29: 0
G30: 0
G31: 0
G32: 0
G33: 0
G34: 0
G35: 0
G36: 0
G37: 0
G38: 0
G39: 0
G40: 0
G41: 0
G42: 0
G43: 0
G44: 0
G45: 0
G46: 0
G47: 0
G48: 0
G49: 0
G50: 0
G51: 0
G52: 0
G53: 0
G54: 0
G55: 0
G56: 0
G57: 0
G58: 0
G59: 0
G60: 0
G61: 0
G62: 0
G63: 0
G64: 0
G65: 0
G66: 0
G67: 0
G68: 0
G69: 0
G70: 0
G71: 0
G72: 0
G73: 0
G74: 0
G75: 0
G76: 0
G77: 0
G78: 0
G79: 0
G80: 0
G81: 0
G82: 0
G83: 0
G84: 0
G85: 0
G86: 0
G87: 0
G88: 0
G89: 0
G90: 0
G91: 0
G92: 0
G93: 0
G94: 0
G95: 0
G96: 0
G97: 0
G98: 0
G99: 0
G100: 0
G101: 0
G102: 0
G103: 0
G104: 0
G105: 0
G106: 0
G107: 0
G108: 0
G109: 0
G110: 0
G111: 0
G112: 0
G113: 0
G114: 0
G115: 0
G116: 0
G117: 0
G118: 0
G119: 0
G120: 0
G121: 0
G122: 0
G123: 0
G124: 0
G125: 0
G126: 0
G127: 0
G128: 0
G129: 0
G130: 0
G131: 0
G132: 0
G133: 0
G134: 0
G135: 0
G136: 0
G137: 0
G138: 0
G139: 0
G140: 0
G141: 0
G142: 0
G143: 0
G144: 0
G145: 0
G146: 0
G147: 0
G148: 0
G149: 0
G150: 0
G151: 0
G152: 0
G153: 0
G154: 0
G155: 0
G156: 0
G157: 0
G158: 0
G159: 0
G160: 0
G161: 0
G162: 0
G163: 0
G164: 0
G165: 0
G166: 0
G167: 0
G168: 0
G169: 0
G170: 0
G171: 0
G172: 0
G173: 0
G174: 0
G175: 0
G176: 0
G177: 0
G178: 0
G179: 0
G180: 0
G181: 0
G182: 0
G183: 0
G184: 0
G185: 0
G186: 0
G187: 0
G188: 0
G189: 0
G190: 0
G191: 0
G192: 0
G193: 0
G194: 0
G195: 0
G196: 0
G197: 0
G198: 0
G199: 0
G200: 0

Sheet Headcount
A1: Headcount & Payroll Cash Forecast
A3: Employee | B3: Department | C3: Status | D3: Annual Base ($) | E3: Weekly Base ($) | F3: Payroll Burden % | G3: Monthly Benefits ($) | H3: Fully Burdened Labor ($) | I3: Start Date | J3: Termination Date | K3: Pay Frequency | L3: Notes
A4: Executive #1 | B4: G&A | C4: Active | D4: 250000 | E4: =D4/52 -> 4807.692308 | F4: =Inputs!$B$10 -> 0.12 | G4: =Inputs!$B$11 -> 650 | H4: =IFERROR( SWITCH( K4, "Weekly",(E4*(1+F4))+(G4*12/52), "Biweekly",(E4*(1+F4)*2)+(G4*12/26), "Semi-Monthly",((D4/24)*(1+F4))+(G4/2), "Monthly",((D4/12)*(1+F4))+G4, 0 ), 0) -> 11069.23077 | I4: 2025-01-01 | K4: Biweekly
A5: Operations Lead #1 | B5: Operations | C5: Active | D5: 75000 | E5: 1442.307692 | F5: =Inputs!$B$10 -> 0.12 | G5: =Inputs!$B$11 -> 650 | H5: 3530.769231 | I5: 2025-01-01 | K5: Biweekly
A6: Planned Sales Team Hire #1 | B6: Sales | C6: Planned | D6: 95000 | E6: 1826.923077 | F6: =Inputs!$B$10 -> 0.12 | G6: =Inputs!$B$11 -> 650 | H6: 4392.307692 | I6: 2026-10-01 | K6: Biweekly
E7: 0 | F7: =Inputs!$B$10 -> 0.12 | G7: =Inputs!$B$11 -> 650 | H7: 0
E8: 0 | F8: =Inputs!$B$10 -> 0.12 | G8: =Inputs!$B$11 -> 650 | H8: 0
E9: 0 | F9: =Inputs!$B$10 -> 0.12 | G9: =Inputs!$B$11 -> 650 | H9: 0
E10: 0 | F10: =Inputs!$B$10 -> 0.12 | G10: =Inputs!$B$11 -> 650 | H10: 0
E11: 0 | F11: =Inputs!$B$10 -> 0.12 | G11: =Inputs!$B$11 -> 650 | H11: 0
E12: 0 | F12: =Inputs!$B$10 -> 0.12 | G12: =Inputs!$B$11 -> 650 | H12: 0
E13: 0 | F13: =Inputs!$B$10 -> 0.12 | G13: =Inputs!$B$11 -> 650 | H13: 0
E14: 0 | F14: =Inputs!$B$10 -> 0.12 | G14: =Inputs!$B$11 -> 650 | H14: 0
E15: 0 | F15: =Inputs!$B$10 -> 0.12 | G15: =Inputs!$B$11 -> 650 | H15: 0
E16: 0 | F16: =Inputs!$B$10 -> 0.12 | G16: =Inputs!$B$11 -> 650 | H16: 0
E17: 0 | F17: =Inputs!$B$10 -> 0.12 | G17: =Inputs!$B$11 -> 650 | H17: 0
E18: 0 | F18: =Inputs!$B$10 -> 0.12 | G18: =Inputs!$B$11 -> 650 | H18: 0
E19: 0 | F19: =Inputs!$B$10 -> 0.12 | G19: =Inputs!$B$11 -> 650 | H19: 0
E20: 0 | F20: =Inputs!$B$10 -> 0.12 | G20: =Inputs!$B$11 -> 650 | H20: 0
E21: 0 | F21: =Inputs!$B$10 -> 0.12 | G21: =Inputs!$B$11 -> 650 | H21: 0
E22: 0 | F22: =Inputs!$B$10 -> 0.12 | G22: =Inputs!$B$11 -> 650 | H22: 0
E23: 0 | F23: =Inputs!$B$10 -> 0.12 | G23: =Inputs!$B$11 -> 650 | H23: 0
E24: 0 | F24: =Inputs!$B$10 -> 0.12 | G24: =Inputs!$B$11 -> 650 | H24: 0
E25: 0 | F25: =Inputs!$B$10 -> 0.12 | G25: =Inputs!$B$11 -> 650 | H25: 0
E26: 0 | F26: =Inputs!$B$10 -> 0.12 | G26: =Inputs!$B$11 -> 650 | H26: 0
E27: 0 | F27: =Inputs!$B$10 -> 0.12 | G27: =Inputs!$B$11 -> 650 | H27: 0
E28: 0 | F28: =Inputs!$B$10 -> 0.12 | G28: =Inputs!$B$11 -> 650 | H28: 0
E29: 0 | F29: =Inputs!$B$10 -> 0.12 | G29: =Inputs!$B$11 -> 650 | H29: 0
E30: 0 | F30: =Inputs!$B$10 -> 0.12 | G30: =Inputs!$B$11 -> 650 | H30: 0
E31: 0 | F31: =Inputs!$B$10 -> 0.12 | G31: =Inputs!$B$11 -> 650 | H31: 0
E32: 0 | F32: =Inputs!$B$10 -> 0.12 | G32: =Inputs!$B$11 -> 650 | H32: 0
E33: 0 | F33: =Inputs!$B$10 -> 0.12 | G33: =Inputs!$B$11 -> 650 | H33: 0
E34: 0 | F34: =Inputs!$B$10 -> 0.12 | G34: =Inputs!$B$11 -> 650 | H34: 0
E35: 0 | F35: =Inputs!$B$10 -> 0.12 | G35: =Inputs!$B$11 -> 650 | H35: 0
E36: 0 | F36: =Inputs!$B$10 -> 0.12 | G36: =Inputs!$B$11 -> 650 | H36: 0
E37: 0 | F37: =Inputs!$B$10 -> 0.12 | G37: =Inputs!$B$11 -> 650 | H37: 0
E38: 0 | F38: =Inputs!$B$10 -> 0.12 | G38: =Inputs!$B$11 -> 650 | H38: 0
E39: 0 | F39: =Inputs!$B$10 -> 0.12 | G39: =Inputs!$B$11 -> 650 | H39: 0
E40: 0 | F40: =Inputs!$B$10 -> 0.12 | G40: =Inputs!$B$11 -> 650 | H40: 0
E41: 0 | F41: =Inputs!$B$10 -> 0.12 | G41: =Inputs!$B$11 -> 650 | H41: 0
E42: 0 | F42: =Inputs!$B$10 -> 0.12 | G42: =Inputs!$B$11 -> 650 | H42: 0
E43: 0 | F43: =Inputs!$B$10 -> 0.12 | G43: =Inputs!$B$11 -> 650 | H43: 0
E44: 0 | F44: =Inputs!$B$10 -> 0.12 | G44: =Inputs!$B$11 -> 650 | H44: 0
E45: 0 | F45: =Inputs!$B$10 -> 0.12 | G45: =Inputs!$B$11 -> 650 | H45: 0
E46: 0 | F46: =Inputs!$B$10 -> 0.12 | G46: =Inputs!$B$11 -> 650 | H46: 0
E47: 0 | F47: =Inputs!$B$10 -> 0.12 | G47: =Inputs!$B$11 -> 650 | H47: 0
E48: 0 | F48: =Inputs!$B$10 -> 0.12 | G48: =Inputs!$B$11 -> 650 | H48: 0
E49: 0 | F49: =Inputs!$B$10 -> 0.12 | G49: =Inputs!$B$11 -> 650 | H49: 0
E50: 0 | F50: =Inputs!$B$10 -> 0.12 | G50: =Inputs!$B$11 -> 650 | H50: 0
E51: 0 | F51: =Inputs!$B$10 -> 0.12 | G51: =Inputs!$B$11 -> 650 | H51: 0
E52: 0 | F52: =Inputs!$B$10 -> 0.12 | G52: =Inputs!$B$11 -> 650 | H52: 0
E53: 0 | F53: =Inputs!$B$10 -> 0.12 | G53: =Inputs!$B$11 -> 650 | H53: 0
E54: 0 | F54: =Inputs!$B$10 -> 0.12 | G54: =Inputs!$B$11 -> 650 | H54: 0
E55: 0 | F55: =Inputs!$B$10 -> 0.12 | G55: =Inputs!$B$11 -> 650 | H55: 0
E56: 0 | F56: =Inputs!$B$10 -> 0.12 | G56: =Inputs!$B$11 -> 650 | H56: 0
E57: 0 | F57: =Inputs!$B$10 -> 0.12 | G57: =Inputs!$B$11 -> 650 | H57: 0
E58: 0 | F58: =Inputs!$B$10 -> 0.12 | G58: =Inputs!$B$11 -> 650 | H58: 0
E59: 0 | F59: =Inputs!$B$10 -> 0.12 | G59: =Inputs!$B$11 -> 650 | H59: 0
E60: 0 | F60: =Inputs!$B$10 -> 0.12 | G60: =Inputs!$B$11 -> 650 | H60: 0
E61: 0 | F61: =Inputs!$B$10 -> 0.12 | G61: =Inputs!$B$11 -> 650 | H61: 0
E62: 0 | F62: =Inputs!$B$10 -> 0.12 | G62: =Inputs!$B$11 -> 650 | H62: 0
E63: 0 | F63: =Inputs!$B$10 -> 0.12 | G63: =Inputs!$B$11 -> 650 | H63: 0
E64: 0 | F64: =Inputs!$B$10 -> 0.12 | G64: =Inputs!$B$11 -> 650 | H64: 0
E65: 0 | F65: =Inputs!$B$10 -> 0.12 | G65: =Inputs!$B$11 -> 650 | H65: 0
E66: 0 | F66: =Inputs!$B$10 -> 0.12 | G66: =Inputs!$B$11 -> 650 | H66: 0
E67: 0 | F67: =Inputs!$B$10 -> 0.12 | G67: =Inputs!$B$11 -> 650 | H67: 0
E68: 0 | F68: =Inputs!$B$10 -> 0.12 | G68: =Inputs!$B$11 -> 650 | H68: 0
E69: 0 | F69: =Inputs!$B$10 -> 0.12 | G69: =Inputs!$B$11 -> 650 | H69: 0
E70: 0 | F70: =Inputs!$B$10 -> 0.12 | G70: =Inputs!$B$11 -> 650 | H70: 0
E71: 0 | F71: =Inputs!$B$10 -> 0.12 | G71: =Inputs!$B$11 -> 650 | H71: 0
E72: 0 | F72: =Inputs!$B$10 -> 0.12 | G72: =Inputs!$B$11 -> 650 | H72: 0
E73: 0 | F73: =Inputs!$B$10 -> 0.12 | G73: =Inputs!$B$11 -> 650 | H73: 0
E74: 0 | F74: =Inputs!$B$10 -> 0.12 | G74: =Inputs!$B$11 -> 650 | H74: 0
E75: 0 | F75: =Inputs!$B$10 -> 0.12 | G75: =Inputs!$B$11 -> 650 | H75: 0
E76: 0 | F76: =Inputs!$B$10 -> 0.12 | G76: =Inputs!$B$11 -> 650 | H76: 0
E77: 0 | F77: =Inputs!$B$10 -> 0.12 | G77: =Inputs!$B$11 -> 650 | H77: 0
E78: 0 | F78: =Inputs!$B$10 -> 0.12 | G78: =Inputs!$B$11 -> 650 | H78: 0
E79: 0 | F79: =Inputs!$B$10 -> 0.12 | G79: =Inputs!$B$11 -> 650 | H79: 0
E80: 0 | F80: =Inputs!$B$10 -> 0.12 | G80: =Inputs!$B$11 -> 650 | H80: 0
E81: 0 | F81: =Inputs!$B$10 -> 0.12 | G81: =Inputs!$B$11 -> 650 | H81: 0
E82: 0 | F82: =Inputs!$B$10 -> 0.12 | G82: =Inputs!$B$11 -> 650 | H82: 0
E83: 0 | F83: =Inputs!$B$10 -> 0.12 | G83: =Inputs!$B$11 -> 650 | H83: 0
E84: 0 | F84: =Inputs!$B$10 -> 0.12 | G84: =Inputs!$B$11 -> 650 | H84: 0
E85: 0 | F85: =Inputs!$B$10 -> 0.12 | G85: =Inputs!$B$11 -> 650 | H85: 0
E86: 0 | F86: =Inputs!$B$10 -> 0.12 | G86: =Inputs!$B$11 -> 650 | H86: 0
E87: 0 | F87: =Inputs!$B$10 -> 0.12 | G87: =Inputs!$B$11 -> 650 | H87: 0
E88: 0 | F88: =Inputs!$B$10 -> 0.12 | G88: =Inputs!$B$11 -> 650 | H88: 0
E89: 0 | F89: =Inputs!$B$10 -> 0.12 | G89: =Inputs!$B$11 -> 650 | H89: 0
E90: 0 | F90: =Inputs!$B$10 -> 0.12 | G90: =Inputs!$B$11 -> 650 | H90: 0
E91: 0 | F91: =Inputs!$B$10 -> 0.12 | G91: =Inputs!$B$11 -> 650 | H91: 0
E92: 0 | F92: =Inputs!$B$10 -> 0.12 | G92: =Inputs!$B$11 -> 650 | H92: 0
E93: 0 | F93: =Inputs!$B$10 -> 0.12 | G93: =Inputs!$B$11 -> 650 | H93: 0
E94: 0 | F94: =Inputs!$B$10 -> 0.12 | G94: =Inputs!$B$11 -> 650 | H94: 0
E95: 0 | F95: =Inputs!$B$10 -> 0.12 | G95: =Inputs!$B$11 -> 650 | H95: 0
E96: 0 | F96: =Inputs!$B$10 -> 0.12 | G96: =Inputs!$B$11 -> 650 | H96: 0
E97: 0 | F97: =Inputs!$B$10 -> 0.12 | G97: =Inputs!$B$11 -> 650 | H97: 0
E98: 0 | F98: =Inputs!$B$10 -> 0.12 | G98: =Inputs!$B$11 -> 650 | H98: 0
E99: 0 | F99: =Inputs!$B$10 -> 0.12 | G99: =Inputs!$B$11 -> 650 | H99: 0
E100: 0 | F100: =Inputs!$B$10 -> 0.12 | G100: =Inputs!$B$11 -> 650 | H100: 0
E101: 0 | F101: =Inputs!$B$10 -> 0.12 | G101: =Inputs!$B$11 -> 650 | H101: 0
E102: 0 | F102: =Inputs!$B$10 -> 0.12 | G102: =Inputs!$B$11 -> 650 | H102: 0
E103: 0 | F103: =Inputs!$B$10 -> 0.12 | G103: =Inputs!$B$11 -> 650 | H103: 0
E104: 0 | F104: =Inputs!$B$10 -> 0.12 | G104: =Inputs!$B$11 -> 650 | H104: 0
E105: 0 | F105: =Inputs!$B$10 -> 0.12 | G105: =Inputs!$B$11 -> 650 | H105: 0
E106: 0 | F106: =Inputs!$B$10 -> 0.12 | G106: =Inputs!$B$11 -> 650 | H106: 0
E107: 0 | F107: =Inputs!$B$10 -> 0.12 | G107: =Inputs!$B$11 -> 650 | H107: 0
E108: 0 | F108: =Inputs!$B$10 -> 0.12 | G108: =Inputs!$B$11 -> 650 | H108: 0
E109: 0 | F109: =Inputs!$B$10 -> 0.12 | G109: =Inputs!$B$11 -> 650 | H109: 0
E110: 0 | F110: =Inputs!$B$10 -> 0.12 | G110: =Inputs!$B$11 -> 650 | H110: 0
E111: 0 | F111: =Inputs!$B$10 -> 0.12 | G111: =Inputs!$B$11 -> 650 | H111: 0
E112: 0 | F112: =Inputs!$B$10 -> 0.12 | G112: =Inputs!$B$11 -> 650 | H112: 0
E113: 0 | F113: =Inputs!$B$10 -> 0.12 | G113: =Inputs!$B$11 -> 650 | H113: 0
E114: 0 | F114: =Inputs!$B$10 -> 0.12 | G114: =Inputs!$B$11 -> 650 | H114: 0
E115: 0 | F115: =Inputs!$B$10 -> 0.12 | G115: =Inputs!$B$11 -> 650 | H115: 0
E116: 0 | F116: =Inputs!$B$10 -> 0.12 | G116: =Inputs!$B$11 -> 650 | H116: 0
E117: 0 | F117: =Inputs!$B$10 -> 0.12 | G117: =Inputs!$B$11 -> 650 | H117: 0
E118: 0 | F118: =Inputs!$B$10 -> 0.12 | G118: =Inputs!$B$11 -> 650 | H118: 0
E119: 0 | F119: =Inputs!$B$10 -> 0.12 | G119: =Inputs!$B$11 -> 650 | H119: 0
E120: 0 | F120: =Inputs!$B$10 -> 0.12 | G120: =Inputs!$B$11 -> 650 | H120: 0
E121: 0 | F121: =Inputs!$B$10 -> 0.12 | G121: =Inputs!$B$11 -> 650 | H121: 0
E122: 0 | F122: =Inputs!$B$10 -> 0.12 | G122: =Inputs!$B$11 -> 650 | H122: 0
E123: 0 | F123: =Inputs!$B$10 -> 0.12 | G123: =Inputs!$B$11 -> 650 | H123: 0
E124: 0 | F124: =Inputs!$B$10 -> 0.12 | G124: =Inputs!$B$11 -> 650 | H124: 0
E125: 0 | F125: =Inputs!$B$10 -> 0.12 | G125: =Inputs!$B$11 -> 650 | H125: 0
E126: 0 | F126: =Inputs!$B$10 -> 0.12 | G126: =Inputs!$B$11 -> 650 | H126: 0
E127: 0 | F127: =Inputs!$B$10 -> 0.12 | G127: =Inputs!$B$11 -> 650 | H127: 0
E128: 0 | F128: =Inputs!$B$10 -> 0.12 | G128: =Inputs!$B$11 -> 650 | H128: 0
E129: 0 | F129: =Inputs!$B$10 -> 0.12 | G129: =Inputs!$B$11 -> 650 | H129: 0
E130: 0 | F130: =Inputs!$B$10 -> 0.12 | G130: =Inputs!$B$11 -> 650 | H130: 0
E131: 0 | F131: =Inputs!$B$10 -> 0.12 | G131: =Inputs!$B$11 -> 650 | H131: 0
E132: 0 | F132: =Inputs!$B$10 -> 0.12 | G132: =Inputs!$B$11 -> 650 | H132: 0
E133: 0 | F133: =Inputs!$B$10 -> 0.12 | G133: =Inputs!$B$11 -> 650 | H133: 0
E134: 0 | F134: =Inputs!$B$10 -> 0.12 | G134: =Inputs!$B$11 -> 650 | H134: 0
E135: 0 | F135: =Inputs!$B$10 -> 0.12 | G135: =Inputs!$B$11 -> 650 | H135: 0
E136: 0 | F136: =Inputs!$B$10 -> 0.12 | G136: =Inputs!$B$11 -> 650 | H136: 0
E137: 0 | F137: =Inputs!$B$10 -> 0.12 | G137: =Inputs!$B$11 -> 650 | H137: 0
E138: 0 | F138: =Inputs!$B$10 -> 0.12 | G138: =Inputs!$B$11 -> 650 | H138: 0
E139: 0 | F139: =Inputs!$B$10 -> 0.12 | G139: =Inputs!$B$11 -> 650 | H139: 0
E140: 0 | F140: =Inputs!$B$10 -> 0.12 | G140: =Inputs!$B$11 -> 650 | H140: 0
E141: 0 | F141: =Inputs!$B$10 -> 0.12 | G141: =Inputs!$B$11 -> 650 | H141: 0
E142: 0 | F142: =Inputs!$B$10 -> 0.12 | G142: =Inputs!$B$11 -> 650 | H142: 0
E143: 0 | F143: =Inputs!$B$10 -> 0.12 | G143: =Inputs!$B$11 -> 650 | H143: 0
E144: 0 | F144: =Inputs!$B$10 -> 0.12 | G144: =Inputs!$B$11 -> 650 | H144: 0
E145: 0 | F145: =Inputs!$B$10 -> 0.12 | G145: =Inputs!$B$11 -> 650 | H145: 0
E146: 0 | F146: =Inputs!$B$10 -> 0.12 | G146: =Inputs!$B$11 -> 650 | H146: 0
E147: 0 | F147: =Inputs!$B$10 -> 0.12 | G147: =Inputs!$B$11 -> 650 | H147: 0
E148: 0 | F148: =Inputs!$B$10 -> 0.12 | G148: =Inputs!$B$11 -> 650 | H148: 0
E149: 0 | F149: =Inputs!$B$10 -> 0.12 | G149: =Inputs!$B$11 -> 650 | H149: 0
E150: 0 | F150: =Inputs!$B$10 -> 0.12 | G150: =Inputs!$B$11 -> 650 | H150: 0
E151: 0 | F151: =Inputs!$B$10 -> 0.12 | G151: =Inputs!$B$11 -> 650 | H151: 0
E152: 0 | F152: =Inputs!$B$10 -> 0.12 | G152: =Inputs!$B$11 -> 650 | H152: 0
E153: 0 | F153: =Inputs!$B$10 -> 0.12 | G153: =Inputs!$B$11 -> 650 | H153: 0
E154: 0 | F154: =Inputs!$B$10 -> 0.12 | G154: =Inputs!$B$11 -> 650 | H154: 0
E155: 0 | F155: =Inputs!$B$10 -> 0.12 | G155: =Inputs!$B$11 -> 650 | H155: 0
E156: 0 | F156: =Inputs!$B$10 -> 0.12 | G156: =Inputs!$B$11 -> 650 | H156: 0
E157: 0 | F157: =Inputs!$B$10 -> 0.12 | G157: =Inputs!$B$11 -> 650 | H157: 0
E158: 0 | F158: =Inputs!$B$10 -> 0.12 | G158: =Inputs!$B$11 -> 650 | H158: 0
E159: 0 | F159: =Inputs!$B$10 -> 0.12 | G159: =Inputs!$B$11 -> 650 | H159: 0
E160: 0 | F160: =Inputs!$B$10 -> 0.12 | G160: =Inputs!$B$11 -> 650 | H160: 0
E161: 0 | F161: =Inputs!$B$10 -> 0.12 | G161: =Inputs!$B$11 -> 650 | H161: 0
E162: 0 | F162: =Inputs!$B$10 -> 0.12 | G162: =Inputs!$B$11 -> 650 | H162: 0
E163: 0 | F163: =Inputs!$B$10 -> 0.12 | G163: =Inputs!$B$11 -> 650 | H163: 0
E164: 0 | F164: =Inputs!$B$10 -> 0.12 | G164: =Inputs!$B$11 -> 650 | H164: 0
E165: 0 | F165: =Inputs!$B$10 -> 0.12 | G165: =Inputs!$B$11 -> 650 | H165: 0
E166: 0 | F166: =Inputs!$B$10 -> 0.12 | G166: =Inputs!$B$11 -> 650 | H166: 0
E167: 0 | F167: =Inputs!$B$10 -> 0.12 | G167: =Inputs!$B$11 -> 650 | H167: 0
E168: 0 | F168: =Inputs!$B$10 -> 0.12 | G168: =Inputs!$B$11 -> 650 | H168: 0
E169: 0 | F169: =Inputs!$B$10 -> 0.12 | G169: =Inputs!$B$11 -> 650 | H169: 0
E170: 0 | F170: =Inputs!$B$10 -> 0.12 | G170: =Inputs!$B$11 -> 650 | H170: 0
E171: 0 | F171: =Inputs!$B$10 -> 0.12 | G171: =Inputs!$B$11 -> 650 | H171: 0
E172: 0 | F172: =Inputs!$B$10 -> 0.12 | G172: =Inputs!$B$11 -> 650 | H172: 0
E173: 0 | F173: =Inputs!$B$10 -> 0.12 | G173: =Inputs!$B$11 -> 650 | H173: 0
E174: 0 | F174: =Inputs!$B$10 -> 0.12 | G174: =Inputs!$B$11 -> 650 | H174: 0
E175: 0 | F175: =Inputs!$B$10 -> 0.12 | G175: =Inputs!$B$11 -> 650 | H175: 0
E176: 0 | F176: =Inputs!$B$10 -> 0.12 | G176: =Inputs!$B$11 -> 650 | H176: 0
E177: 0 | F177: =Inputs!$B$10 -> 0.12 | G177: =Inputs!$B$11 -> 650 | H177: 0
E178: 0 | F178: =Inputs!$B$10 -> 0.12 | G178: =Inputs!$B$11 -> 650 | H178: 0
E179: 0 | F179: =Inputs!$B$10 -> 0.12 | G179: =Inputs!$B$11 -> 650 | H179: 0
E180: 0 | F180: =Inputs!$B$10 -> 0.12 | G180: =Inputs!$B$11 -> 650 | H180: 0
E181: 0 | F181: =Inputs!$B$10 -> 0.12 | G181: =Inputs!$B$11 -> 650 | H181: 0
E182: 0 | F182: =Inputs!$B$10 -> 0.12 | G182: =Inputs!$B$11 -> 650 | H182: 0
E183: 0 | F183: =Inputs!$B$10 -> 0.12 | G183: =Inputs!$B$11 -> 650 | H183: 0
E184: 0 | F184: =Inputs!$B$10 -> 0.12 | G184: =Inputs!$B$11 -> 650 | H184: 0
E185: 0 | F185: =Inputs!$B$10 -> 0.12 | G185: =Inputs!$B$11 -> 650 | H185: 0
E186: 0 | F186: =Inputs!$B$10 -> 0.12 | G186: =Inputs!$B$11 -> 650 | H186: 0
E187: 0 | F187: =Inputs!$B$10 -> 0.12 | G187: =Inputs!$B$11 -> 650 | H187: 0
E188: 0 | F188: =Inputs!$B$10 -> 0.12 | G188: =Inputs!$B$11 -> 650 | H188: 0
E189: 0 | F189: =Inputs!$B$10 -> 0.12 | G189: =Inputs!$B$11 -> 650 | H189: 0
E190: 0 | F190: =Inputs!$B$10 -> 0.12 | G190: =Inputs!$B$11 -> 650 | H190: 0
E191: 0 | F191: =Inputs!$B$10 -> 0.12 | G191: =Inputs!$B$11 -> 650 | H191: 0
E192: 0 | F192: =Inputs!$B$10 -> 0.12 | G192: =Inputs!$B$11 -> 650 | H192: 0
E193: 0 | F193: =Inputs!$B$10 -> 0.12 | G193: =Inputs!$B$11 -> 650 | H193: 0
E194: 0 | F194: =Inputs!$B$10 -> 0.12 | G194: =Inputs!$B$11 -> 650 | H194: 0
E195: 0 | F195: =Inputs!$B$10 -> 0.12 | G195: =Inputs!$B$11 -> 650 | H195: 0
E196: 0 | F196: =Inputs!$B$10 -> 0.12 | G196: =Inputs!$B$11 -> 650 | H196: 0
E197: 0 | F197: =Inputs!$B$10 -> 0.12 | G197: =Inputs!$B$11 -> 650 | H197: 0
E198: 0 | F198: =Inputs!$B$10 -> 0.12 | G198: =Inputs!$B$11 -> 650 | H198: 0
E199: 0 | F199: =Inputs!$B$10 -> 0.12 | G199: =Inputs!$B$11 -> 650 | H199: 0
E200: 0 | F200: =Inputs!$B$10 -> 0.12 | G200: =Inputs!$B$11 -> 650 | H200: 0

Sheet Payroll Calendar
A1: Payroll Period Calendar
A3: Pay Period Start Date | B3: Pay Period End Date | C3: Pay Date
A4: 2025-12-29 | B4: 2026-01-11 | C4: 2026-01-16
A5: =A4+14 -> 2026-01-12 | B5: 2026-01-25 | C5: 2026-01-30
A6: =A5+14 -> 2026-01-26 | B6: 2026-02-08 | C6: 2026-02-13
A7: =A6+14 -> 2026-02-09 | B7: 2026-02-22 | C7: 2026-02-27
A8: =A7+14 -> 2026-02-23 | B8: 2026-03-08 | C8: 2026-03-13
A9: =A8+14 -> 2026-03-09 | B9: 2026-03-22 | C9: 2026-03-27
A10: =A9+14 -> 2026-03-23 | B10: 2026-04-05 | C10: 2026-04-10
A11: =A10+14 -> 2026-04-06 | B11: 2026-04-19 | C11: 2026-04-24
A12: =A11+14 -> 2026-04-20 | B12: 2026-05-03 | C12: 2026-05-08
A13: =A12+14 -> 2026-05-04 | B13: 2026-05-17 | C13: 2026-05-22
A14: =A13+14 -> 2026-05-18 | B14: 2026-05-31 | C14: 2026-06-05
A15: =A14+14 -> 2026-06-01 | B15: 2026-06-14 | C15: 2026-06-19
A16: =A15+14 -> 2026-06-15 | B16: 2026-06-28 | C16: 2026-07-03
A17: =A16+14 -> 2026-06-29 | B17: 2026-07-12 | C17: 2026-07-17
A18: =A17+14 -> 2026-07-13 | B18: 2026-07-26 | C18: 2026-07-31
A19: =A18+14 -> 2026-07-27 | B19: 2026-08-09 | C19: 2026-08-14
A20: =A19+14 -> 2026-08-10 | B20: 2026-08-23 | C20: 2026-08-28
A21: =A20+14 -> 2026-08-24 | B21: 2026-09-06 | C21: 2026-09-11
A22: =A21+14 -> 2026-09-07 | B22: 2026-09-20 | C22: 2026-09-25
A23: =A22+14 -> 2026-09-21 | B23: 2026-10-04 | C23: 2026-10-09
A24: =A23+14 -> 2026-10-05 | B24: 2026-10-18 | C24: 2026-10-23
A25: =A24+14 -> 2026-10-19 | B25: 2026-11-01 | C25: 2026-11-06
A26: =A25+14 -> 2026-11-02 | B26: 2026-11-15 | C26: 2026-11-20
A27: =A26+14 -> 2026-11-16 | B27: 2026-11-29 | C27: 2026-12-04
A28: =A27+14 -> 2026-11-30 | B28: 2026-12-13 | C28: 2026-12-18
A29: =A28+14 -> 2026-12-14 | B29: 2026-12-27 | C29: 2027-01-01
A30: =A29+14 -> 2026-12-28 | B30: 2027-01-10 | C30: 2027-01-15
A31: =A30+14 -> 2027-01-11 | B31: 2027-01-24 | C31: 2027-01-29
A32: =A31+14 -> 2027-01-25 | B32: 2027-02-07 | C32: 2027-02-12
A33: =A32+14 -> 2027-02-08 | B33: 2027-02-21 | C33: 2027-02-26
A34: =A33+14 -> 2027-02-22 | B34: 2027-03-07 | C34: 2027-03-12
A35: =A34+14 -> 2027-03-08 | B35: 2027-03-21 | C35: 2027-03-26
A36: =A35+14 -> 2027-03-22 | B36: 2027-04-04 | C36: 2027-04-09
A37: =A36+14 -> 2027-04-05 | B37: 2027-04-18 | C37: 2027-04-23
A38: =A37+14 -> 2027-04-19 | B38: 2027-05-02 | C38: 2027-05-07
A39: =A38+14 -> 2027-05-03 | B39: 2027-05-16 | C39: 2027-05-21
A40: =A39+14 -> 2027-05-17 | B40: 2027-05-30 | C40: 2027-06-04
A41: =A40+14 -> 2027-05-31 | B41: 2027-06-13 | C41: 2027-06-18
A42: =A41+14 -> 2027-06-14 | B42: 2027-06-27 | C42: 2027-07-02
A43: =A42+14 -> 2027-06-28 | B43: 2027-07-11 | C43: 2027-07-16
A44: =A43+14 -> 2027-07-12 | B44: 2027-07-25 | C44: 2027-07-30
A45: =A44+14 -> 2027-07-26 | B45: 2027-08-08 | C45: 2027-08-13
A46: =A45+14 -> 2027-08-09 | B46: 2027-08-22 | C46: 2027-08-27
A47: =A46+14 -> 2027-08-23 | B47: 2027-09-05 | C47: 2027-09-10
A48: =A47+14 -> 2027-09-06 | B48: 2027-09-19 | C48: 2027-09-24
A49: =A48+14 -> 2027-09-20 | B49: 2027-10-03 | C49: 2027-10-08
A50: =A49+14 -> 2027-10-04 | B50: 2027-10-17 | C50: 2027-10-22
A51: =A50+14 -> 2027-10-18 | B51: 2027-10-31 | C51: 2027-11-05
A52: =A51+14 -> 2027-11-01 | B52: 2027-11-14 | C52: 2027-11-19
A53: =A52+14 -> 2027-11-15 | B53: 2027-11-28 | C53: 2027-12-03
A54: =A53+14 -> 2027-11-29 | B54: 2027-12-12 | C54: 2027-12-17
A55: =A54+14 -> 2027-12-13 | B55: 2027-12-26 | C55: 2027-12-31

Sheet Other Cash Flows
A1: Other Cash Flows — Non-A/R, Non-A/P Items
A3: Category | B3: Description | C3: Cash Flow Type | D3: Amount ($) | E3: Expected Cash Date | F3: Probability % | G3: Risk-Adjusted Amount ($) | H3: Notes
A4: Taxes | B4: Quarterly estimated tax | C4: Outflow | D4: -55000 | E4: 2026-09-15 | F4: 1 | G4: =D4*F4 -> -55000
A5: Capex | B5: Equipment purchase | C5: Outflow | D5: -75000 | E5: 2026-10-02 | F5: 1 | G5: -75000
A6: Other Receipt | B6: Insurance recovery | C6: Inflow | D6: 23000 | E6: 2026-10-16 | F6: 0.5 | G6: 11500
G7: 0
G8: 0
G9: 0
G10: 0
G11: 0
G12: 0
G13: 0
G14: 0
G15: 0
G16: 0
G17: 0
G18: 0
G19: 0
G20: 0
G21: 0
G22: 0
G23: 0
G24: 0
G25: 0
G26: 0
G27: 0
G28: 0
G29: 0
G30: 0
G31: 0
G32: 0
G33: 0
G34: 0
G35: 0
G36: 0
G37: 0
G38: 0
G39: 0
G40: 0
G41: 0
G42: 0
G43: 0
G44: 0
G45: 0
G46: 0
G47: 0
G48: 0
G49: 0
G50: 0
G51: 0
G52: 0
G53: 0
G54: 0
G55: 0
G56: 0
G57: 0
G58: 0
G59: 0
G60: 0
G61: 0
G62: 0
G63: 0
G64: 0
G65: 0
G66: 0
G67: 0
G68: 0
G69: 0
G70: 0
G71: 0
G72: 0
G73: 0
G74: 0
G75: 0
G76: 0
G77: 0
G78: 0
G79: 0
G80: 0
G81: 0
G82: 0
G83: 0
G84: 0
G85: 0
G86: 0
G87: 0
G88: 0
G89: 0
G90: 0
G91: 0
G92: 0
G93: 0
G94: 0
G95: 0
G96: 0
G97: 0
G98: 0
G99: 0
G100: 0
G101: 0
G102: 0
G103: 0
G104: 0
G105: 0
G106: 0
G107: 0
G108: 0
G109: 0
G110: 0
G111: 0
G112: 0
G113: 0
G114: 0
G115: 0
G116: 0
G117: 0
G118: 0
G119: 0
G120: 0
G121: 0
G122: 0
G123: 0
G124: 0
G125: 0
G126: 0
G127: 0
G128: 0
G129: 0
G130: 0
G131: 0
G132: 0
G133: 0
G134: 0
G135: 0
G136: 0
G137: 0
G138: 0
G139: 0
G140: 0
G141: 0
G142: 0
G143: 0
G144: 0
G145: 0
G146: 0
G147: 0
G148: 0
G149: 0
G150: 0
G151: 0
G152: 0
G153: 0
G154: 0
G155: 0
G156: 0
G157: 0
G158: 0
G159: 0
G160: 0
G161: 0
G162: 0
G163: 0
G164: 0
G165: 0
G166: 0
G167: 0
G168: 0
G169: 0
G170: 0
G171: 0
G172: 0
G173: 0
G174: 0
G175: 0
G176: 0
G177: 0
G178: 0
G179: 0
G180: 0
G181: 0
G182: 0
G183: 0
G184: 0
G185: 0
G186: 0
G187: 0
G188: 0
G189: 0
G190: 0
G191: 0
G192: 0
G193: 0
G194: 0
G195: 0
G196: 0
G197: 0
G198: 0
G199: 0
G200: 0

Sheet Debt & Liquidity
A1: Debt & Liquidity
A3: Facility Summary
A4: Revolver Commitment | B4: =Inputs!B8 -> 500000
A5: Beginning Revolver Drawn | B5: =Inputs!B7 -> 0
A6: Beginning Availability | B6: =B4-B5 -> 500000
A7: Minimum Cash Threshold | B7: =Inputs!B5 -> 150000
A8: Maximum Practical Liquidity | B8: =Inputs!B6+B6 -> 875000
A9: Notes | B9: Customize for borrowing-base, covenant, notice-period, or minimum-draw restrictions.
